[Event "*** Titled Tuesday Blitz"]
[Site "Chess.com"]
[Date "2018.09.04"]
[Round "2"]
[White "GMBenjaminBok"]
[Black "gkchesstiger"]
[Result "1-0"]
[WhiteElo "2645"]
[BlackElo "2766"]
[TimeControl "180+2"]
[EndTime "13:56:11 PDT"]
[Termination "GMBenjaminBok won by resignation"]

1. c4 {[%clk 0:03:01.9]} 1... c6 {[%clk 0:02:58.7]} 2. d4 {[%clk 0:03:00]} 2...
d5 {[%clk 0:02:59.2]} 3. Nf3 {[%clk 0:03:01.4]} 3... Nf6 {[%clk 0:02:59.4]} 4.
Nc3 {[%clk 0:03:02.4]} 4... Qb6 {[%clk 0:02:57.7]} 5. e3 {[%clk 0:02:58.3]} 5...
Bg4 {[%clk 0:02:57.8]} 6. Bd3 {[%clk 0:02:55.7]} 6... e6 {[%clk 0:02:58.1]} 7.
O-O {[%clk 0:02:55.5]} 7... Nbd7 {[%clk 0:02:57.6]} 8. b3 {[%clk 0:02:55.4]}
8... Be7 {[%clk 0:02:57.3]} 9. Bb2 {[%clk 0:02:55.8]} 9... O-O {[%clk
0:02:57.7]} 10. Qe2 {[%clk 0:02:56.3]} 10... Rfe8 {[%clk 0:02:57.2]} 11. Rad1
{[%clk 0:02:49.8]} 11... a5 {[%clk 0:02:54.3]} 12. h3 {[%clk 0:02:50.6]} 12...
Bxf3 {[%clk 0:02:53.8]} 13. Qxf3 {[%clk 0:02:50.2]} 13... a4 {[%clk 0:02:46.5]}
14. c5 {[%clk 0:02:44.2]} 14... Qb4 {[%clk 0:02:02.6]} 15. a3 {[%clk 0:02:38.9]}
15... Qxb3 {[%clk 0:02:03.4]} 16. Rb1 {[%clk 0:02:39]} 16... b6 {[%clk
0:02:03.8]} 17. Ba1 {[%clk 0:02:14.1]} 17... Qxa3 {[%clk 0:02:04.1]} 18. cxb6
{[%clk 0:02:15.2]} 18... Reb8 {[%clk 0:02:00.7]} 19. b7 {[%clk 0:01:48.5]} 19...
Ra7 {[%clk 0:02:00.1]} 20. e4 {[%clk 0:01:48.7]} 20... dxe4 {[%clk 0:01:43.9]}
21. Nxe4 {[%clk 0:01:48.9]} 21... Raxb7 {[%clk 0:01:38.5]} 22. Rxb7 {[%clk
0:01:38.8]} 22... Rxb7 {[%clk 0:01:39]} 23. Nxf6+ {[%clk 0:01:12.9]} 23... Nxf6
{[%clk 0:01:39.3]} 24. Qxc6 {[%clk 0:01:13.5]} 24... Qb4 {[%clk 0:00:48.3]} 25.
Bc3 {[%clk 0:00:52.7]} 25... Qb6 {[%clk 0:00:37.3]} 26. Qxa4 {[%clk 0:00:43.2]}
26... Ra7 {[%clk 0:00:36.1]} 27. Qb5 {[%clk 0:00:30.5]} 27... Qxb5 {[%clk
0:00:36.8]} 28. Bxb5 {[%clk 0:00:32.4]} 28... Ra3 {[%clk 0:00:37.1]} 29. Rc1
{[%clk 0:00:31.3]} 29... g6 {[%clk 0:00:35.3]} 30. Bd2 {[%clk 0:00:28]} 30...
Kg7 {[%clk 0:00:35.4]} 31. Bc6 {[%clk 0:00:23.2]} 31... Rd3 {[%clk 0:00:34.7]}
32. Be3 {[%clk 0:00:22.9]} 32... Bd6 {[%clk 0:00:33.7]} 33. Kf1 {[%clk
0:00:23.1]} 33... h6 {[%clk 0:00:32.8]} 34. Bf3 {[%clk 0:00:19.6]} 34... Ra3
{[%clk 0:00:31.3]} 35. Rc6 {[%clk 0:00:19.7]} 35... Bb4 {[%clk 0:00:30.1]} 36.
Rb6 {[%clk 0:00:15.4]} 36... Bc3 {[%clk 0:00:28.3]} 37. Rc6 {[%clk 0:00:15.9]}
37... Bb4 {[%clk 0:00:28.7]} 38. Bf4 {[%clk 0:00:14]} 38... g5 {[%clk
0:00:25.3]} 39. Be5 {[%clk 0:00:14.9]} 39... Kg6 {[%clk 0:00:26.1]} 40. d5
{[%clk 0:00:16.3]} 40... Ra1+ {[%clk 0:00:22.9]} 41. Bxa1 {[%clk 0:00:16.3]} 1-0

[Event "*** Titled Tuesday Blitz"]
[Site "Chess.com"]
[Date "2018.09.04"]
[Round "2"]
[White "aa175"]
[Black "tteshan"]
[Result "0-1"]
[WhiteElo "1961"]
[BlackElo "2027"]
[TimeControl "180+2"]
[EndTime "13:56:23 PDT"]
[Termination "tteshan won by checkmate"]

1. e4 {[%clk 0:02:56.7]} 1... c5 {[%clk 0:03:00]} 2. b4 {[%clk 0:02:53.4]} 2...
cxb4 {[%clk 0:03:00.1]} 3. a3 {[%clk 0:02:53.7]} 3... bxa3 {[%clk 0:03:00.8]} 4.
Nf3 {[%clk 0:02:53.1]} 4... e6 {[%clk 0:02:58.7]} 5. e5 {[%clk 0:02:50.5]} 5...
Nc6 {[%clk 0:02:50.5]} 6. Rxa3 {[%clk 0:02:49.2]} 6... d6 {[%clk 0:02:44.8]} 7.
Rd3 {[%clk 0:02:48.4]} 7... Qc7 {[%clk 0:02:44]} 8. Ba3 {[%clk 0:02:46.6]} 8...
Nxe5 {[%clk 0:02:39.3]} 9. Nxe5 {[%clk 0:02:42.2]} 9... dxe5 {[%clk 0:02:40.9]}
10. Bxf8 {[%clk 0:02:43.4]} 10... Kxf8 {[%clk 0:02:42.4]} 11. c4 {[%clk
0:02:32.8]} 11... Nf6 {[%clk 0:02:42.5]} 12. Qb3 {[%clk 0:02:29.2]} 12... b6
{[%clk 0:02:35.7]} 13. Be2 {[%clk 0:02:02.6]} 13... Bb7 {[%clk 0:02:34.7]} 14.
Nc3 {[%clk 0:01:49.7]} 14... g6 {[%clk 0:02:33.4]} 15. Nb5 {[%clk 0:01:48.5]}
15... Qc5 {[%clk 0:02:28.5]} 16. Nd6 {[%clk 0:01:43.4]} 16... Bxg2 {[%clk
0:02:24.1]} 17. Rg1 {[%clk 0:01:39]} 17... Bc6 {[%clk 0:02:22.1]} 18. h4 {[%clk
0:01:18.1]} 18... e4 {[%clk 0:02:20.4]} 19. Qc3 {[%clk 0:01:13.5]} 19... Ke7
{[%clk 0:02:17.2]} 20. Rd4 {[%clk 0:01:07.8]} 20... e5 {[%clk 0:02:11.5]} 21.
Nxe4 {[%clk 0:00:13.8]} 21... Nxe4 {[%clk 0:02:02.8]} 22. Rxe4 {[%clk 0:00:06]}
22... Bxe4 {[%clk 0:02:01.3]} 23. Rg5 {[%clk 0:00:04.8]} 23... f6 {[%clk
0:01:59.5]} 24. Rg3 {[%clk 0:00:05.7]} 24... Rhd8 {[%clk 0:01:56.9]} 25. Re3
{[%clk 0:00:05.5]} 25... Qd4 {[%clk 0:01:52.4]} 26. Qa3+ {[%clk 0:00:02.5]}
26... Kf7 {[%clk 0:01:52.2]} 27. d3 {[%clk 0:00:03.4]} 27... Bf5 {[%clk
0:01:48.4]} 28. h5 {[%clk 0:00:03.4]} 28... a5 {[%clk 0:01:41.6]} 29. hxg6+
{[%clk 0:00:02.7]} 29... hxg6 {[%clk 0:01:41.7]} 30. Rg3 {[%clk 0:00:03.3]}
30... Qh4 {[%clk 0:01:37.7]} 31. Qc3 {[%clk 0:00:02.8]} 31... Qh1+ {[%clk
0:01:36.2]} 32. Kd2 {[%clk 0:00:04.1]} 32... e4 {[%clk 0:01:31.2]} 33. d4 {[%clk
0:00:03.1]} 33... Qh6+ {[%clk 0:01:23.5]} 34. Ke1 {[%clk 0:00:03.1]} 34... a4
{[%clk 0:01:19.7]} 35. Qb2 {[%clk 0:00:03.7]} 35... a3 {[%clk 0:01:17.9]} 36.
Qxb6 {[%clk 0:00:05]} 36... Qc1+ {[%clk 0:01:16.5]} 37. Bd1 {[%clk 0:00:04.7]}
37... Rd7 {[%clk 0:01:16]} 38. Rb3 {[%clk 0:00:03.5]} 38... a2 {[%clk
0:01:14.7]} 39. Qb4 {[%clk 0:00:02.9]} 39... a1=Q {[%clk 0:01:12.9]} 40. Qd2
{[%clk 0:00:02.5]} 40... Qxd2+ {[%clk 0:01:11.2]} 41. Kxd2 {[%clk 0:00:02.3]}
41... Qxd4+ {[%clk 0:01:12.3]} 42. Ke2 {[%clk 0:00:02.7]} 42... Bg4+ {[%clk
0:01:09.7]} 43. Kf1 {[%clk 0:00:02.5]} 43... Qxd1+ {[%clk 0:01:10]} 44. Kg2
{[%clk 0:00:02.3]} 44... Bf3+ {[%clk 0:01:08.3]} 45. Rxf3 {[%clk 0:00:02.3]}
45... Qxf3+ {[%clk 0:01:07.9]} 46. Kf1 {[%clk 0:00:02.2]} 46... Ra1# {[%clk
0:01:07.6]} 0-1

[Event "*** Titled Tuesday Blitz"]
[Site "Chess.com"]
[Date "2018.09.04"]
[Round "2"]
[White "maciek_92"]
[Black "eljanov"]
[Result "1-0"]
[WhiteElo "2664"]
[BlackElo "2736"]
[TimeControl "180+2"]
[EndTime "13:56:29 PDT"]
[Termination "maciek_92 won by resignation"]

1. c4 {[%clk 0:03:00.7]} 1... Nf6 {[%clk 0:02:58.3]} 2. Nc3 {[%clk 0:03:01.2]}
2... e5 {[%clk 0:02:59]} 3. g3 {[%clk 0:03:02]} 3... Bb4 {[%clk 0:02:59]} 4. Bg2
{[%clk 0:03:02.9]} 4... O-O {[%clk 0:02:58.8]} 5. e4 {[%clk 0:03:01.3]} 5... d6
{[%clk 0:02:58.4]} 6. Nge2 {[%clk 0:03:02.4]} 6... Nc6 {[%clk 0:02:57.3]} 7. O-O
{[%clk 0:03:00.1]} 7... Bc5 {[%clk 0:02:56.1]} 8. h3 {[%clk 0:03:00.2]} 8... a5
{[%clk 0:02:51.5]} 9. d3 {[%clk 0:02:59.1]} 9... Nd4 {[%clk 0:02:51.3]} 10. Kh2
{[%clk 0:02:44.4]} 10... c6 {[%clk 0:02:46.8]} 11. f4 {[%clk 0:02:27.6]} 11...
Re8 {[%clk 0:02:23.7]} 12. f5 {[%clk 0:02:16.8]} 12... b5 {[%clk 0:01:55.5]} 13.
g4 {[%clk 0:02:01.5]} 13... bxc4 {[%clk 0:01:49]} 14. dxc4 {[%clk 0:01:59.1]}
14... Ba6 {[%clk 0:01:49.9]} 15. b3 {[%clk 0:01:52.5]} 15... d5 {[%clk
0:01:33.9]} 16. g5 {[%clk 0:01:27.8]} 16... Nxe4 {[%clk 0:01:24.9]} 17. Bxe4
{[%clk 0:01:27.8]} 17... Nxe2 {[%clk 0:01:14.9]} 18. Qxe2 {[%clk 0:01:15.9]}
18... Bd4 {[%clk 0:01:11.4]} 19. Bb2 {[%clk 0:00:42.5]} 19... dxe4 {[%clk
0:01:10.7]} 20. Rad1 {[%clk 0:00:42.8]} 20... c5 {[%clk 0:01:01.3]} 21. Nxe4
{[%clk 0:00:33.2]} 21... Qc7 {[%clk 0:00:48.1]} 22. Bc1 {[%clk 0:00:27.3]} 22...
Bb7 {[%clk 0:00:46.4]} 23. g6 {[%clk 0:00:26.1]} 23... fxg6 {[%clk 0:00:39.1]}
24. fxg6 {[%clk 0:00:26.8]} 24... hxg6 {[%clk 0:00:40.3]} 25. Ng5 {[%clk
0:00:13.1]} 25... Rf8 {[%clk 0:00:34.9]} 26. Ne6 {[%clk 0:00:13.1]} 26... Rxf1
{[%clk 0:00:24.9]} 27. Nxc7 {[%clk 0:00:13]} 27... Bg1+ {[%clk 0:00:14.8]} 28.
Kg3 {[%clk 0:00:12.9]} 28... Bf2+ {[%clk 0:00:06.4]} 29. Qxf2 {[%clk 0:00:09]}
29... Rxf2 {[%clk 0:00:07.3]} 30. Kxf2 {[%clk 0:00:09.7]} 30... Rf8+ {[%clk
0:00:07.5]} 31. Kg1 {[%clk 0:00:06.9]} 31... Rf3 {[%clk 0:00:07.3]} 32. Nd5
{[%clk 0:00:08.4]} 32... Rxh3 {[%clk 0:00:07.4]} 33. Kg2 {[%clk 0:00:09.4]}
33... Rc3 {[%clk 0:00:07.1]} 34. Bg5 {[%clk 0:00:08.5]} 34... a4 {[%clk
0:00:05]} 35. Kf2 {[%clk 0:00:06]} 35... Rc2+ {[%clk 0:00:02.5]} 36. Rd2 {[%clk
0:00:07.3]} 36... axb3 {[%clk 0:00:03.3]} 37. axb3 {[%clk 0:00:09.2]} 37... Rc1
{[%clk 0:00:04.2]} 38. Ne7+ {[%clk 0:00:08.3]} 38... Kf7 {[%clk 0:00:05]} 39.
Rd7 {[%clk 0:00:09.3]} 39... Bh1 {[%clk 0:00:04.9]} 40. Bxc1 {[%clk 0:00:09.3]}
1-0

[Event "*** Titled Tuesday Blitz"]
[Site "Chess.com"]
[Date "2018.09.04"]
[Round "2"]
[White "jncool68"]
[Black "Margency"]
[Result "0-1"]
[WhiteElo "2500"]
[BlackElo "2699"]
[TimeControl "180+2"]
[EndTime "13:56:30 PDT"]
[Termination "Margency won by resignation"]

1. e4 {[%clk 0:03:01.9]} 1... e5 {[%clk 0:02:59.3]} 2. Nf3 {[%clk 0:03:01.1]}
2... Nc6 {[%clk 0:03:00.1]} 3. Bb5 {[%clk 0:03:01.7]} 3... a6 {[%clk 0:03:00.4]}
4. Ba4 {[%clk 0:03:01.5]} 4... Nf6 {[%clk 0:03:01.2]} 5. O-O {[%clk 0:03:02.2]}
5... Nxe4 {[%clk 0:03:02.3]} 6. d4 {[%clk 0:03:02.8]} 6... b5 {[%clk 0:03:03.1]}
7. Bb3 {[%clk 0:03:03.2]} 7... d5 {[%clk 0:03:04.6]} 8. dxe5 {[%clk 0:03:04]}
8... Be6 {[%clk 0:03:05.7]} 9. Be3 {[%clk 0:03:03.8]} 9... Be7 {[%clk
0:03:05.4]} 10. c3 {[%clk 0:03:04.9]} 10... Nc5 {[%clk 0:03:05]} 11. Bc2 {[%clk
0:03:02.7]} 11... Nd7 {[%clk 0:03:05.9]} 12. Bd4 {[%clk 0:02:58.9]} 12... Na5
{[%clk 0:02:56.2]} 13. Re1 {[%clk 0:02:57.7]} 13... c5 {[%clk 0:02:54.7]} 14.
Be3 {[%clk 0:02:58.7]} 14... Nc4 {[%clk 0:02:54.4]} 15. Bc1 {[%clk 0:02:59.5]}
15... O-O {[%clk 0:02:52.4]} 16. b3 {[%clk 0:03:00.1]} 16... Ncb6 {[%clk
0:02:52.2]} 17. Nbd2 {[%clk 0:03:00]} 17... a5 {[%clk 0:02:39.9]} 18. Nf1 {[%clk
0:02:59.9]} 18... b4 {[%clk 0:02:38.1]} 19. cxb4 {[%clk 0:02:55.7]} 19... axb4
{[%clk 0:02:38.9]} 20. Ng3 {[%clk 0:02:56.6]} 20... c4 {[%clk 0:02:16.2]} 21.
Nd4 {[%clk 0:02:55.8]} 21... Bc5 {[%clk 0:01:58.9]} 22. Be3 {[%clk 0:02:46.9]}
22... Rc8 {[%clk 0:01:42.2]} 23. f4 {[%clk 0:02:38]} 23... Qh4 {[%clk
0:01:03.6]} 24. f5 {[%clk 0:02:27]} 24... Nxe5 {[%clk 0:01:04.6]} 25. fxe6
{[%clk 0:02:26.6]} 25... Ng4 {[%clk 0:01:00.2]} 26. Bf4 {[%clk 0:01:47.3]} 26...
fxe6 {[%clk 0:00:47.3]} 27. Ne2 {[%clk 0:01:29.2]} 27... Rxf4 {[%clk 0:00:31]}
28. Nxf4 {[%clk 0:01:29.6]} 28... Qf2+ {[%clk 0:00:32.1]} 29. Kh1 {[%clk
0:01:30.8]} 29... Qxf4 {[%clk 0:00:33.5]} 30. g3 {[%clk 0:01:22.2]} 30... Qxd4
{[%clk 0:00:28.4]} 31. Qxd4 {[%clk 0:01:23]} 31... Bxd4 {[%clk 0:00:29.6]} 32.
Rac1 {[%clk 0:01:24.2]} 32... e5 {[%clk 0:00:19.4]} 33. bxc4 {[%clk 0:01:24.2]}
33... Nxc4 {[%clk 0:00:17.4]} 34. Bf5 {[%clk 0:01:25]} 34... Nf2+ {[%clk
0:00:16.2]} 35. Kg2 {[%clk 0:01:26.2]} 35... Rc6 {[%clk 0:00:17.2]} 36. Rc2
{[%clk 0:00:35.8]} 36... Rf6 {[%clk 0:00:14.4]} 37. g4 {[%clk 0:00:34.2]} 37...
g6 {[%clk 0:00:14.8]} 38. Bc8 {[%clk 0:00:33.5]} 38... Ne3+ {[%clk 0:00:14.4]}
39. Rxe3 {[%clk 0:00:34.6]} 39... Bxe3 {[%clk 0:00:15.8]} 40. Rc7 {[%clk
0:00:36.3]} 40... Bb6 {[%clk 0:00:15.5]} 41. Rb7 {[%clk 0:00:36.7]} 41... Ne4
{[%clk 0:00:16.2]} 42. h4 {[%clk 0:00:36.2]} 42... Rf2+ {[%clk 0:00:17.1]} 43.
Kh3 {[%clk 0:00:37.5]} 43... Rf3+ {[%clk 0:00:18.5]} 44. Kg2 {[%clk 0:00:38.6]}
44... Rg3+ {[%clk 0:00:19.9]} 45. Kf1 {[%clk 0:00:39.4]} 45... Bd4 {[%clk
0:00:20.1]} 46. Be6+ {[%clk 0:00:38.8]} 46... Kf8 {[%clk 0:00:21.5]} 47. Bxd5
{[%clk 0:00:35.8]} 47... Rg1+ {[%clk 0:00:22.6]} 48. Ke2 {[%clk 0:00:36]} 48...
Nc3+ {[%clk 0:00:24.5]} 49. Kd3 {[%clk 0:00:37.5]} 49... Nxd5 {[%clk 0:00:25.6]}
50. g5 {[%clk 0:00:39.2]} 50... Rg3+ {[%clk 0:00:25.9]} 51. Ke4 {[%clk
0:00:40.4]} 51... Ne7 {[%clk 0:00:25.9]} 0-1

[Event "*** Titled Tuesday Blitz"]
[Site "Chess.com"]
[Date "2018.09.04"]
[Round "2"]
[White "JonahWillow"]
[Black "TastyFrenchFries"]
[Result "1-0"]
[WhiteElo "2736"]
[BlackElo "2333"]
[TimeControl "180+2"]
[EndTime "13:56:34 PDT"]
[Termination "JonahWillow won by resignation"]

1. e4 {[%clk 0:03:01.9]} 1... e6 {[%clk 0:03:01.8]} 2. d3 {[%clk 0:03:02.3]}
2... d6 {[%clk 0:02:58.7]} 3. f4 {[%clk 0:02:59.7]} 3... d5 {[%clk 0:02:58.5]}
4. Nd2 {[%clk 0:02:59.9]} 4... c5 {[%clk 0:02:57.9]} 5. g3 {[%clk 0:02:59.6]}
5... Bd6 {[%clk 0:02:59.1]} 6. Bg2 {[%clk 0:03:00.5]} 6... Ne7 {[%clk
0:03:00.6]} 7. Ngf3 {[%clk 0:03:00.8]} 7... O-O {[%clk 0:03:00.8]} 8. O-O {[%clk
0:03:01.5]} 8... Nbc6 {[%clk 0:03:01.4]} 9. Nh4 {[%clk 0:02:57.1]} 9... Bc7
{[%clk 0:02:27.2]} 10. c3 {[%clk 0:02:48.6]} 10... b6 {[%clk 0:02:23.9]} 11. e5
{[%clk 0:02:34.3]} 11... a5 {[%clk 0:02:23]} 12. Ndf3 {[%clk 0:02:31.6]} 12...
a4 {[%clk 0:02:21.1]} 13. d4 {[%clk 0:02:26.1]} 13... Ba6 {[%clk 0:02:19.6]} 14.
Rf2 {[%clk 0:02:21.9]} 14... a3 {[%clk 0:02:16.5]} 15. b3 {[%clk 0:02:21.9]}
15... cxd4 {[%clk 0:02:11.1]} 16. cxd4 {[%clk 0:02:22.6]} 16... Bb5 {[%clk
0:02:09.2]} 17. Qc2 {[%clk 0:02:15]} 17... Nb4 {[%clk 0:02:03.3]} 18. Qd1 {[%clk
0:01:56.5]} 18... Nd3 {[%clk 0:01:46.6]} 19. Rd2 {[%clk 0:01:57]} 19... Nxc1
{[%clk 0:01:45.3]} 20. Rxc1 {[%clk 0:01:58.9]} 20... Qd7 {[%clk 0:01:43.4]} 21.
Qc2 {[%clk 0:01:46.2]} 21... Rfc8 {[%clk 0:01:40.8]} 22. Ng5 {[%clk 0:01:43.9]}
22... g6 {[%clk 0:01:36.9]} 23. Qd1 {[%clk 0:01:44.9]} 23... Bd8 {[%clk
0:01:29.2]} 24. Bf1 {[%clk 0:01:09]} 24... Bxf1 {[%clk 0:01:22.6]} 25. Qxf1
{[%clk 0:01:10.9]} 25... Rxc1 {[%clk 0:01:14.5]} 26. Qxc1 {[%clk 0:01:12.8]}
26... Nc6 {[%clk 0:01:09.5]} 27. Ng2 {[%clk 0:01:06.7]} 27... Be7 {[%clk
0:01:01.9]} 28. Ne3 {[%clk 0:01:04.5]} 28... Nb4 {[%clk 0:00:56.9]} 29. Nf3
{[%clk 0:01:02.2]} 29... Qb5 {[%clk 0:00:52.4]} 30. Qc7 {[%clk 0:00:47.5]} 30...
Kf8 {[%clk 0:00:42.3]} 31. Ng5 {[%clk 0:00:46.1]} 31... Bxg5 {[%clk 0:00:32.7]}
32. fxg5 {[%clk 0:00:47.5]} 32... Qc6 {[%clk 0:00:32.6]} 33. Qxc6 {[%clk
0:00:42.6]} 33... Nxc6 {[%clk 0:00:34.5]} 34. Nc2 {[%clk 0:00:44.5]} 34... b5
{[%clk 0:00:31.5]} 35. h4 {[%clk 0:00:43.7]} 35... b4 {[%clk 0:00:30.8]} 36. Kf2
{[%clk 0:00:43.3]} 36... Ke7 {[%clk 0:00:29.7]} 37. Ke3 {[%clk 0:00:43.6]} 37...
Rc8 {[%clk 0:00:28.8]} 38. Kd3 {[%clk 0:00:41.1]} 38... Rh8 {[%clk 0:00:26.6]}
39. Rf2 {[%clk 0:00:39.7]} 39... h6 {[%clk 0:00:26.4]} 40. gxh6 {[%clk
0:00:38.9]} 40... Rxh6 {[%clk 0:00:28.3]} 41. Ne3 {[%clk 0:00:40.7]} 41... Rh5
{[%clk 0:00:22.7]} 42. Rc2 {[%clk 0:00:39.7]} 42... Kd7 {[%clk 0:00:21.6]} 43.
Rf2 {[%clk 0:00:41]} 43... Ke7 {[%clk 0:00:21.2]} 44. Rc2 {[%clk 0:00:40.6]}
44... Kd7 {[%clk 0:00:22.6]} 45. Rh2 {[%clk 0:00:41.6]} 45... Rh8 {[%clk
0:00:21.3]} 46. g4 {[%clk 0:00:40.5]} 46... Rh7 {[%clk 0:00:21.6]} 47. h5 {[%clk
0:00:40.2]} 47... gxh5 {[%clk 0:00:23.5]} 48. gxh5 {[%clk 0:00:40.2]} 48... Rh6
{[%clk 0:00:24.4]} 49. Ng4 {[%clk 0:00:39.8]} 49... Rh8 {[%clk 0:00:26.3]} 50.
Nf6+ {[%clk 0:00:40.2]} 50... Ke7 {[%clk 0:00:27.6]} 51. h6 {[%clk 0:00:41.5]}
51... Nd8 {[%clk 0:00:28.5]} 52. h7 {[%clk 0:00:39.9]} 52... Nc6 {[%clk
0:00:29.1]} 53. Rg2 {[%clk 0:00:39.1]} 1-0

[Event "*** Titled Tuesday Blitz"]
[Site "Chess.com"]
[Date "2018.09.04"]
[Round "2"]
[White "tsakos2731"]
[Black "Evandro_Barbosa"]
[Result "0-1"]
[WhiteElo "2340"]
[BlackElo "2474"]
[TimeControl "180+2"]
[EndTime "13:56:35 PDT"]
[Termination "Evandro_Barbosa won by checkmate"]

1. d4 {[%clk 0:03:01.9]} 1... Nf6 {[%clk 0:03:00.5]} 2. c4 {[%clk 0:03:02.8]}
2... c5 {[%clk 0:03:01.8]} 3. d5 {[%clk 0:03:03.7]} 3... b5 {[%clk 0:03:03.2]}
4. cxb5 {[%clk 0:03:02.5]} 4... a6 {[%clk 0:03:04.2]} 5. f3 {[%clk 0:03:02.7]}
5... g6 {[%clk 0:03:03.2]} 6. e4 {[%clk 0:03:02.4]} 6... Bg7 {[%clk 0:03:04.6]}
7. Na3 {[%clk 0:03:02.9]} 7... O-O {[%clk 0:03:05.1]} 8. Ne2 {[%clk 0:03:03.8]}
8... e6 {[%clk 0:03:06.1]} 9. d6 {[%clk 0:02:59]} 9... axb5 {[%clk 0:02:53.9]}
10. Nxb5 {[%clk 0:02:54.8]} 10... Nc6 {[%clk 0:02:52.7]} 11. Nc7 {[%clk
0:02:49.5]} 11... Ra7 {[%clk 0:02:48]} 12. Nc3 {[%clk 0:02:48.8]} 12... Nh5
{[%clk 0:02:43.8]} 13. Be3 {[%clk 0:02:46.7]} 13... Nd4 {[%clk 0:02:44.1]} 14.
N7b5 {[%clk 0:02:42.9]} 14... Rb7 {[%clk 0:02:37.3]} 15. Nxd4 {[%clk 0:02:37]}
15... cxd4 {[%clk 0:02:36.7]} 16. Bxd4 {[%clk 0:02:38.5]} 16... Rxb2 {[%clk
0:02:11.8]} 17. Bxg7 {[%clk 0:02:38]} 17... Kxg7 {[%clk 0:02:02.7]} 18. Qd4+
{[%clk 0:02:21.8]} 18... Kg8 {[%clk 0:02:00.7]} 19. Nd5 {[%clk 0:01:40.5]} 19...
Qa5+ {[%clk 0:01:41.3]} 20. Kd1 {[%clk 0:01:40.3]} 20... exd5 {[%clk 0:01:15.4]}
21. Qxb2 {[%clk 0:01:40.3]} 21... dxe4 {[%clk 0:01:14.9]} 22. fxe4 {[%clk
0:01:27.4]} 22... Re8 {[%clk 0:00:52.7]} 23. Rc1 {[%clk 0:00:41.6]} 23... Qa4+
{[%clk 0:00:43.9]} 24. Qb3 {[%clk 0:00:29.5]} 24... Qxe4 {[%clk 0:00:43.9]} 25.
Bd3 {[%clk 0:00:29.7]} 25... Qg4+ {[%clk 0:00:43.2]} 26. Kc2 {[%clk 0:00:21.2]}
26... Qxg2+ {[%clk 0:00:36.7]} 27. Kb1 {[%clk 0:00:22.4]} 27... Bb7 {[%clk
0:00:37.2]} 28. Rhe1 {[%clk 0:00:22.4]} 28... Rf8 {[%clk 0:00:36.5]} 29. Re7
{[%clk 0:00:21.6]} 29... Bd5 {[%clk 0:00:35.9]} 30. Bc4 {[%clk 0:00:22.8]} 30...
Nf4 {[%clk 0:00:26.4]} 31. Bxd5 {[%clk 0:00:20.7]} 31... Nxd5 {[%clk 0:00:26.9]}
32. Rxd7 {[%clk 0:00:21.9]} 32... Qe4+ {[%clk 0:00:27.3]} 33. Kb2 {[%clk
0:00:21.5]} 33... Qe5+ {[%clk 0:00:27.9]} 34. Kb1 {[%clk 0:00:22.9]} 34... Qf5+
{[%clk 0:00:29.1]} 35. Kb2 {[%clk 0:00:23.9]} 35... Qe5+ {[%clk 0:00:30.3]} 36.
Kb1 {[%clk 0:00:24.8]} 36... Qf5+ {[%clk 0:00:31.4]} 37. Kb2 {[%clk 0:00:26.1]}
37... Qxd7 {[%clk 0:00:32.8]} 38. Qxd5 {[%clk 0:00:26.9]} 38... Rb8+ {[%clk
0:00:33.7]} 39. Ka1 {[%clk 0:00:27.7]} 39... Qd8 {[%clk 0:00:31.2]} 40. Qe5
{[%clk 0:00:18.7]} 40... Qd7 {[%clk 0:00:24.6]} 41. Rc7 {[%clk 0:00:14.9]} 41...
Qa4 {[%clk 0:00:23.8]} 42. Qd5 {[%clk 0:00:06.7]} 42... Qf4 {[%clk 0:00:22]} 43.
Rc2 {[%clk 0:00:05.3]} 43... Qf6+ {[%clk 0:00:21.2]} 44. Qe5 {[%clk 0:00:04.4]}
44... Qxe5+ {[%clk 0:00:22.1]} 45. Rc3 {[%clk 0:00:06.2]} 45... Qxc3# {[%clk
0:00:23.1]} 0-1

[Event "*** Titled Tuesday Blitz"]
[Site "Chess.com"]
[Date "2018.09.04"]
[Round "2"]
[White "afgano29"]
[Black "lucasmito"]
[Result "1-0"]
[WhiteElo "2692"]
[BlackElo "2348"]
[TimeControl "180+2"]
[EndTime "13:56:38 PDT"]
[Termination "afgano29 won by resignation"]

1. d4 {[%clk 0:03:01.9]} 1... Nf6 {[%clk 0:03:00.6]} 2. c4 {[%clk 0:03:00.9]}
2... g6 {[%clk 0:03:01.7]} 3. Nc3 {[%clk 0:03:01.9]} 3... d5 {[%clk 0:03:03.1]}
4. cxd5 {[%clk 0:03:03.8]} 4... Nxd5 {[%clk 0:03:04.9]} 5. e4 {[%clk 0:03:03.6]}
5... Nxc3 {[%clk 0:03:06.2]} 6. bxc3 {[%clk 0:03:05.5]} 6... Bg7 {[%clk
0:03:07.8]} 7. Nf3 {[%clk 0:03:05.8]} 7... c5 {[%clk 0:03:09.3]} 8. Rb1 {[%clk
0:03:04.3]} 8... O-O {[%clk 0:03:05]} 9. Be2 {[%clk 0:03:04.2]} 9... cxd4 {[%clk
0:03:06]} 10. cxd4 {[%clk 0:03:06.1]} 10... Qa5+ {[%clk 0:03:07.3]} 11. Bd2
{[%clk 0:03:06.9]} 11... Qxa2 {[%clk 0:03:08.2]} 12. O-O {[%clk 0:03:08.4]}
12... Bg4 {[%clk 0:03:09.1]} 13. Bg5 {[%clk 0:03:09.7]} 13... e6 {[%clk
0:02:50.1]} 14. Rxb7 {[%clk 0:02:27.8]} 14... Nc6 {[%clk 0:02:44.4]} 15. d5
{[%clk 0:02:24.2]} 15... exd5 {[%clk 0:02:46.3]} 16. exd5 {[%clk 0:02:25.5]}
16... Bxf3 {[%clk 0:02:44.1]} 17. Bxf3 {[%clk 0:02:19.4]} 17... Nd4 {[%clk
0:02:45.5]} 18. d6 {[%clk 0:02:03.3]} 18... Qa5 {[%clk 0:01:22.6]} 19. Be7
{[%clk 0:01:57.3]} 19... Rfe8 {[%clk 0:01:22.6]} 20. Rc7 {[%clk 0:01:36.3]}
20... Rab8 {[%clk 0:00:55.4]} 21. Bc6 {[%clk 0:01:17.2]} 21... Rxe7 {[%clk
0:00:34.2]} 22. dxe7 {[%clk 0:01:08.4]} 22... Qxc7 {[%clk 0:00:33.2]} 23. e8=Q+
{[%clk 0:01:08.5]} 23... Rxe8 {[%clk 0:00:34]} 24. Bxe8 {[%clk 0:01:08.5]} 24...
h5 {[%clk 0:00:22]} 25. Ba4 {[%clk 0:01:07.1]} 25... Qc4 {[%clk 0:00:18.8]} 26.
Re1 {[%clk 0:01:05.2]} 26... Bf6 {[%clk 0:00:17.6]} 27. Re4 {[%clk 0:00:49.3]}
27... Qd5 {[%clk 0:00:09.7]} 28. Re3 {[%clk 0:00:43.2]} 28... Qc5 {[%clk
0:00:07.8]} 29. Rd3 {[%clk 0:00:42.7]} 29... Kg7 {[%clk 0:00:08.6]} 30. Bb3
{[%clk 0:00:35.4]} 30... Qb4 {[%clk 0:00:07]} 31. Bd5 {[%clk 0:00:33.4]} 31...
Qc5 {[%clk 0:00:07.4]} 32. Ba2 {[%clk 0:00:28.7]} 32... Qb4 {[%clk 0:00:06.2]}
33. g3 {[%clk 0:00:28.1]} 33... a5 {[%clk 0:00:06.4]} 34. Bb3 {[%clk 0:00:24.8]}
34... Qc5 {[%clk 0:00:06.5]} 35. h4 {[%clk 0:00:25.1]} 35... Qb5 {[%clk
0:00:07]} 36. Ba4 {[%clk 0:00:24.2]} 36... Qb4 {[%clk 0:00:07.7]} 37. Kg2 {[%clk
0:00:19]} 37... Qb2 {[%clk 0:00:08.4]} 38. Bb3 {[%clk 0:00:18.2]} 38... Be5
{[%clk 0:00:06.6]} 39. Bd5 {[%clk 0:00:17.1]} 39... Qb6 {[%clk 0:00:06.4]} 40.
Qa4 {[%clk 0:00:16.1]} 40... Qc5 {[%clk 0:00:05.8]} 41. Ba2 {[%clk 0:00:15.9]}
41... Nc6 {[%clk 0:00:05.4]} 42. Qc4 {[%clk 0:00:15.2]} 42... Qxc4 {[%clk
0:00:05.9]} 43. Bxc4 {[%clk 0:00:17.1]} 43... Bc7 {[%clk 0:00:05.5]} 44. Rd7
{[%clk 0:00:17.8]} 44... Ne5 {[%clk 0:00:05.9]} 45. Rxc7 {[%clk 0:00:18.9]} 1-0